fUST/lending_fUST_20250520
["ID","MTS","AMOUNT","RATE_DAILY","PERIOD"]
[361745136,1747752635101,-492.500268,0.00016986,2]
[361745137,1747752635111,-200.83723,0.00016986,2]
[361745138,1747752635120,-200.83723,0.00016986,2]
[361745139,1747752635129,-184.87069951,0.00016986,2]
[361745140,1747752635139,-430.0,0.00016986,2]
[361745141,1747752635148,-430.0,0.00016986,2]
[361745142,1747752635158,-151.0,0.00016986,2]
[361745143,1747752635167,-1077.82,0.00016986,2]
[361745144,1747752635176,-452.75,0.00016986,2]
[361745145,1747752635186,-490.0,0.00016986,2]
[361745146,1747752635196,-230.338317,0.00016986,2]
[361745147,1747752635206,-430.0,0.00016986,2]
[361745148,1747752635215,-430.0,0.00016986,2]
[361745149,1747752635225,-230.338317,0.00016986,2]
[361745150,1747752635235,-490.0,0.00016986,2]
[361745151,1747752635244,-430.0,0.00016986,2]
[361745152,1747752635254,-490.0,0.00016986,2]
[361745153,1747752635263,-437.82,0.00016986,2]
[361745154,1747752635273,-490.0,0.00016986,2]
[361745155,1747752635282,-490.0,0.00016986,2]
[361745156,1747752635291,-1533.27,0.00016986,2]
[361745157,1747752635301,-430.0,0.00016986,2]
[361745158,1747752635311,-430.0,0.00016986,2]
[361745159,1747752635321,-216.105732,0.00016986,2]
[361745160,1747752635332,-430.0,0.00016986,2]
[361745161,1747752635341,-430.0,0.00016986,2]
[361745162,1747752635350,-430.0,0.00016986,2]
[361745163,1747752635360,-430.0,0.00016986,2]
[361745164,1747752635369,-499.23,0.00016986,2]
[361745165,1747752635379,-154.90462378,0.00016986,2]
[361745166,1747752635388,-538.24,0.00016986,2]
[361745167,1747752635398,-430.0,0.00016986,2]
[361745168,1747752635407,-469.28,0.00016986,2]
[361745169,1747752635417,-430.0,0.00016986,2]
[361745170,1747752635427,-430.0,0.00016986,2]
[361745171,1747752635437,-477.31,0.00016986,2]
[361745172,1747752635446,-1126.95,0.00016986,2]
[361745173,1747752635456,-571.74,0.00016986,2]
[361745174,1747752635466,-430.0,0.00016986,2]
[361745175,1747752635476,-3389.92254385,0.00017066,2]
[361745176,1747752635485,-259.42063306,0.00017082,2]
[361745177,1747752635495,-160.0,0.00017117,2]
[361745178,1747752635505,-422.65292303,0.00017117,2]
[361745179,1747752635515,-212.38718278,0.00017117,2]
[361745180,1747752635525,-160.0,0.00017117,2]
[361745181,1747752635534,-894.64583333,0.00017117,2]
[361745182,1747752635543,-151.0,0.00017149,2]
[361745183,1747752635553,-151.0,0.00017149,2]
[361745184,1747752635562,-151.0,0.00017149,2]
[361745185,1747752635572,-151.0,0.00017149,2]
[361745186,1747752635582,-151.0,0.00017149,2]
[361745187,1747752635592,-151.0,0.00017149,2]
[361745188,1747752635607,-766.257021,0.00017182,2]
[361745189,1747752635616,-151.0,0.00017182,2]
[361745190,1747752635627,-151.0,0.00017182,2]
[361745191,1747752635637,-151.0,0.00017182,2]
[361745192,1747752635648,-200.83723,0.00017182,2]
[361745193,1747752635657,-200.83723,0.00017182,2]
[361745194,1747752635666,-151.0,0.000172,2]
[361745195,1747752635677,-151.0,0.000172,2]
[361745196,1747752635686,-151.0,0.000172,2]
[361745197,1747752635881,-500.0,0.00017203,2]
[361745198,1747752635891,-500.0,0.00017203,2]
[361745199,1747752635901,-625.56290238,0.00017203,2]
[361745200,1747752635911,-534.44048896,0.00017203,2]
[361745201,1747752635920,-3017.53480422,0.00017234,2]
[361745202,1747752635930,-151.0,0.00017234,2]
[361745203,1747752635941,-151.0,0.00017234,2]
[361745204,1747752635952,-492.500268,0.00017234,2]
[361745205,1747752635962,-492.500268,0.00017234,2]
[361745206,1747752635972,-151.0,0.00017234,2]
[361745207,1747752635982,-230.338317,0.00017234,2]
[361745208,1747752635992,-230.338317,0.00017234,2]
[361745209,1747752636002,-500.0,0.00017256,2]
[361745210,1747752636011,-626.92197628,0.00017256,2]
[361745211,1747752636020,-151.0,0.0001726,2]
[361745212,1747752636032,-151.0,0.0001726,2]
[361745213,1747752636041,-151.0,0.0001726,2]
[361745214,1747752636052,-151.0,0.0001726,2]
[361745215,1747752636063,-151.0,0.0001726,2]
[361745216,1747752636072,-430.0,0.0001726,2]
[361745217,1747752636082,-430.0,0.0001726,2]
[361745218,1747752636092,-151.0,0.0001726,2]
[361745219,1747752636101,-151.0,0.0001726,2]
[361745220,1747752636111,-430.0,0.0001726,2]
[361745221,1747752636121,-430.0,0.0001726,2]
[361745222,1747752636130,-151.0,0.0001726,2]
[361745223,1747752636140,-151.0,0.0001726,2]
[361745224,1747752636149,-430.0,0.0001726,2]
[361745225,1747752636159,-151.0,0.0001726,2]
[361745226,1747752636168,-151.0,0.0001726,2]
[361745227,1747752636179,-151.0,0.0001726,2]
[361745228,1747752636189,-151.0,0.0001726,2]
[361745229,1747752636199,-151.0,0.0001726,2]
[361745230,1747752636209,-634.25,0.0001726,2]
[361745231,1747752636218,-588.17,0.0001726,2]
[361745232,1747752636228,-223.74295981,0.0001726,2]
[361745233,1747752636238,-510.0,0.0001726,2]
[361745234,1747752636249,-583.01,0.0001726,2]
[361745235,1747752636259,-430.0,0.0001726,2]
[361745236,1747752636268,-430.0,0.0001726,2]
[361745237,1747752636278,-200.83723,0.0001726,2]
[361745238,1747752636287,-200.83723,0.0001726,2]
[361745239,1747752636297,-430.0,0.0001726,2]
[361745240,1747752636307,-430.0,0.0001726,2]
[361745241,1747752636317,-1077.82,0.0001726,2]
[361745242,1747752636327,-430.0,0.0001726,2]
[361745243,1747752636337,-430.0,0.0001726,2]
[361745244,1747752636350,-452.75,0.0001726,2]
[361745245,1747752636360,-430.0,0.0001726,2]
[361745246,1747752636370,-437.82,0.0001726,2]
[361745247,1747752636379,-1533.27,0.0001726,2]
[361745248,1747752636389,-444.06909859,0.0001726,2]
[361745249,1747752636398,-430.0,0.0001726,2]
[361745250,1747752636407,-525.24519739,0.0001726,2]
[361745251,1747752636417,-430.0,0.0001726,2]
[361745252,1747752636427,-430.0,0.0001726,2]
[361745253,1747752636436,-510.0,0.0001726,2]
[361745254,1747752636446,-499.23,0.0001726,2]
[361745255,1747752636456,-538.24,0.0001726,2]
[361745256,1747752636465,-430.0,0.0001726,2]
[361745257,1747752636475,-469.28,0.0001726,2]
[361745258,1747752636484,-430.0,0.0001726,2]
[361745259,1747752636494,-430.0,0.0001726,2]
[361745260,1747752636504,-477.31,0.0001726,2]
[361745261,1747752636518,-1126.95,0.0001726,2]
[361745262,1747752636528,-571.74,0.0001726,2]
[361745263,1747752636538,-430.0,0.0001726,2]
[361745264,1747752636547,-151.0,0.00017279,2]
[361745265,1747752636556,-192.809542,0.00017279,2]
[361745266,1747752636566,-492.500268,0.00017279,2]
[361745267,1747752636575,-492.500268,0.00017279,2]
[361745268,1747752636585,-230.338317,0.00017279,2]
[361745269,1747752636596,-230.338317,0.00017279,2]
[361745270,1747752636609,-5152.46097477,0.00017279,2]
[361745271,1747752636619,-151.0,0.00017389,2]
[361745272,1747752636629,-151.0,0.00017389,2]
[361745273,1747752636639,-151.0,0.00017389,2]
[361745274,1747752636649,-11054.28836948,0.0001739,2]
[361745275,1747752636659,-241.909536,0.0001739,2]
[361745276,1747752636671,-151.0,0.00017452,2]
[361745277,1747752636687,-500.0,0.00017477,2]
[361745278,1747752636697,-151.0,0.00017516,2]
[361745279,1747752636707,-151.0,0.00017516,2]
[361745280,1747752636716,-151.0,0.00017516,2]
[361745281,1747752636726,-151.0,0.00017516,2]
[361745282,1747752636736,-151.0,0.00017516,2]
[361745283,1747752636746,-151.0,0.00017534,2]
[361745284,1747752636755,-151.0,0.00017534,2]
[361745285,1747752636765,-151.0,0.00017534,2]
[361745286,1747752636774,-151.0,0.00017534,2]
[361745287,1747752636784,-151.0,0.00017534,2]
[361745288,1747752636798,-430.0,0.00017534,2]
[361745289,1747752636807,-430.0,0.00017534,2]
[361745290,1747752636816,-151.0,0.00017534,2]
[361745291,1747752636826,-151.0,0.00017534,2]
[361745292,1747752636836,-430.0,0.00017534,2]
[361745293,1747752636845,-489.46111951,0.00017534,2]
[361745294,1747752636854,-151.0,0.00017534,2]
[361745295,1747752636864,-151.0,0.00017534,2]
[361745296,1747752636873,-151.0,0.00017534,2]
[361745297,1747752636883,-430.0,0.00017534,2]
[361745298,1747752636892,-151.0,0.00017534,2]
[361745299,1747752636901,-151.0,0.00017534,2]
[361745300,1747752636911,-204.177568,0.00017534,2]
[361745301,1747752636920,-634.25,0.00017534,2]
[361745302,1747752636929,-588.17,0.00017534,2]
[361745303,1747752636939,-583.01,0.00017534,2]
[361745304,1747752636949,-430.0,0.00017534,2]
[361745305,1747752636958,-492.500268,0.00017534,2]
[361745306,1747752636967,-430.0,0.00017534,2]
[361745307,1747752636977,-492.500268,0.00017534,2]
[361745308,1747752636986,-200.83723,0.00017534,2]
[361745309,1747752636995,-200.83723,0.00017534,2]
[361745310,1747752637004,-430.0,0.00017534,2]
[361745311,1747752637014,-430.0,0.00017534,2]
[361745312,1747752637023,-1077.82,0.00017534,2]
[361745313,1747752637033,-230.338317,0.00017534,2]
[361745314,1747752637043,-430.0,0.00017534,2]
[361745315,1747752637052,-430.0,0.00017534,2]
[361745316,1747752637062,-230.338317,0.00017534,2]
[361745317,1747752637071,-452.75,0.00017534,2]
[361745318,1747752637080,-430.0,0.00017534,2]
[361745319,1747752637090,-437.82,0.00017534,2]
[361745320,1747752637100,-1533.27,0.00017534,2]
[361745321,1747752637110,-430.0,0.00017534,2]
[361745322,1747752637119,-430.0,0.00017534,2]
[361745323,1747752637129,-430.0,0.00017534,2]
[361745324,1747752637139,-499.23,0.00017534,2]
[361745325,1747752637148,-538.24,0.00017534,2]
[361745326,1747752637158,-430.0,0.00017534,2]
[361745327,1747752637168,-469.28,0.00017534,2]
[361745328,1747752637177,-365.87,0.00017534,2]
[361745329,1747752637191,-430.0,0.00017534,2]
[361745330,1747752637201,-477.31,0.00017534,2]
[361745331,1747752637212,-1126.95,0.00017534,2]
[361745332,1747752637221,-571.74,0.00017534,2]
[361745333,1747752637231,-430.0,0.00017534,2]
[361745334,1747752637241,-151.0,0.00017576,2]
[361745335,1747752637251,-152.661896,0.00017576,2]
[361745336,1747752637261,-151.0,0.00017576,2]
[361745337,1747752637271,-151.0,0.00017576,2]
[361745338,1747752637280,-151.0,0.00017576,2]
[361745339,1747752637290,-158.280771,0.00017604,4]
[361745340,1747752637300,-5152.46097477,0.00017624,2]
[361745341,1747752637310,-587.0,0.00017632,2]
[361745342,1747752637321,-587.0,0.00017632,2]
[361745343,1747752637331,-300.0,0.00017632,2]
[361745344,1747752637343,-180.0,0.00017632,2]
[361745345,1747752637352,-547.0,0.00017659,2]
[361745346,1747752637363,-707.0,0.00017659,2]
[361745347,1747752637372,-1211.037,0.00017659,2]
[361745348,1747752637383,-150.463,0.00017659,2]
[361745349,1747752637393,-632.992,0.00017704,2]
[361745350,1747752637403,-151.0,0.00017704,2]
[361745351,1747752637415,-208.4899,0.00017704,2]
[361745352,1747752637425,-200.83723,0.00017704,2]
[361745353,1747752637436,-200.83723,0.00017704,2]
[361745354,1747752637446,-1000.0,0.00017751,2]
[361745355,1747752637456,-3389.92254385,0.00017793,2]
[361745356,1747752637466,-1200.0,0.000178,2]
[361745357,1747752637475,-160.0,0.00017807,2]
[361745358,1747752637487,-151.0,0.00017808,2]
[361745359,1747752637498,-155.554734,0.00017808,2]
[361745360,1747752637508,-151.0,0.00017808,2]
[361745361,1747752637517,-151.0,0.00017808,2]
[361745362,1747752637527,-151.0,0.00017808,2]
[361745363,1747752637536,-430.0,0.00017808,2]
[361745364,1747752637546,-430.0,0.00017808,2]
[361745365,1747752637555,-223.183305,0.00017808,2]
[361745367,1747752637565,-151.0,0.00017808,2]
[361745368,1747752637574,-284.92,0.00017808,2]
[361745369,1747752637583,-151.0,0.00017808,2]
[361745371,1747752637594,-151.0,0.00017808,2]
[361745372,1747752637607,-430.0,0.00017808,2]
[361745373,1747752637617,-634.25,0.00017808,2]
[361745374,1747752637628,-588.17,0.00017808,2]
[361745375,1747752637641,-583.01,0.00017808,2]
[361745376,1747752637652,-430.0,0.00017808,2]
[361745377,1747752637664,-492.500268,0.00017808,2]
[361745378,1747752637676,-430.0,0.00017808,2]
[361745380,1747752637686,-492.500268,0.00017808,2]
[361745381,1747752637695,-430.0,0.00017808,2]
[361745383,1747752637705,-430.0,0.00017808,2]
[361745384,1747752637714,-1077.82,0.00017808,2]
[361745385,1747752637724,-230.338317,0.00017808,2]
[361745386,1747752637734,-430.0,0.00017808,2]
[361745387,1747752637744,-430.0,0.00017808,2]
[361745388,1747752637755,-230.338317,0.00017808,2]
[361745389,1747752637765,-452.75,0.00017808,2]
[361745390,1747752637776,-430.0,0.00017808,2]
[361745392,1747752637786,-437.82,0.00017808,2]
[361745393,1747752637797,-1533.27,0.00017808,2]
[361745394,1747752637806,-430.0,0.00017808,2]
[361745396,1747752637816,-430.0,0.00017808,2]
[361745397,1747752637827,-430.0,0.00017808,2]
[361745398,1747752637837,-499.23,0.00017808,2]
[361745399,1747752637847,-538.24,0.00017808,2]
[361745400,1747752637857,-430.0,0.00017808,2]
[361745401,1747752637867,-469.28,0.00017808,2]
[361745402,1747752637877,-430.0,0.00017808,2]
[361745403,1747752637888,-477.31,0.00017808,2]
[361745404,1747752637898,-1126.95,0.00017808,2]
[361745405,1747752637908,-571.74,0.00017808,2]
[361745406,1747752637918,-430.0,0.00017808,2]
[361745407,1747752637928,-151.0,0.000179,2]
[361745408,1747752637938,-151.0,0.000179,2]
[361745409,1747752637948,-151.0,0.000179,2]
[361745410,1747752637958,-151.0,0.000179,2]
[361745411,1747752637967,-5152.46097477,0.00017969,2]
[361745412,1747752637977,-151.0,0.00017969,2]
[361745413,1747752637986,-200.83723,0.00017969,2]
[361745414,1747752637996,-200.83723,0.00017969,2]
[361745415,1747752638006,-2000.0,0.00018,2]
[361745416,1747752638015,-3074.73496718,0.00018,2]
[361745417,1747752638025,-2000.0,0.00018,2]
[361745418,1747752638035,-2000.0,0.00018,2]
[361745419,1747752638045,-151.0,0.00018,2]
[361745420,1747752638054,-151.0,0.00018,2]
[361745421,1747752638063,-492.500268,0.00018,2]
[361745422,1747752638073,-492.500268,0.00018,2]
[361745423,1747752638084,-230.338317,0.00018025,2]
[361745424,1747752638095,-230.338317,0.00018025,2]
[361745425,1747752638105,-500.0,0.00018025,2]
[361745426,1747752638114,-151.0,0.00018082,2]
[361745427,1747752638123,-254.90751,0.00018082,2]
[361745428,1747752638133,-430.0,0.00018082,2]
[361745429,1747752638142,-430.0,0.00018082,2]
[361745430,1747752638152,-151.0,0.00018082,2]
[361745431,1747752638162,-430.0,0.00018082,2]
[361745432,1747752638172,-634.25,0.00018082,2]
[361745433,1747752638181,-588.17,0.00018082,2]
[361745434,1747752638190,-583.01,0.00018082,2]
[361745435,1747752638200,-430.0,0.00018082,2]
[361745436,1747752638210,-430.0,0.00018082,2]
[361745437,1747752638220,-430.0,0.00018082,2]
[361745438,1747752638229,-430.0,0.00018082,2]
[361745439,1747752638239,-1077.82,0.00018082,2]
[361745440,1747752638250,-492.28726585,0.00018082,2]
[361745441,1747752638260,-430.0,0.00018082,2]
[361745442,1747752638270,-452.75,0.00018082,2]
[361745443,1747752638280,-430.0,0.00018082,2]
[361745444,1747752638289,-437.82,0.00018082,2]
[361745445,1747752638299,-1533.27,0.00018082,2]
[361745446,1747752638309,-430.0,0.00018082,2]
[361745447,1747752638318,-430.0,0.00018082,2]
[361745448,1747752638328,-430.0,0.00018082,2]
[361745449,1747752638337,-499.23,0.00018082,2]
[361745450,1747752638347,-538.24,0.00018082,2]
[361745451,1747752638356,-430.0,0.00018082,2]
[361745452,1747752638366,-469.28,0.00018082,2]
[361745453,1747752638375,-430.0,0.00018082,2]
[361745454,1747752638385,-477.31,0.00018082,2]
[361745455,1747752638395,-1126.95,0.00018082,2]
[361745456,1747752638405,-571.74,0.00018082,2]
[361745457,1747752638415,-430.0,0.00018082,2]
[361745458,1747752638424,-421.15870295,0.00018089,2]
[361745459,1747752638434,-14009.51698398,0.00018095,2]
[361745460,1747752638443,-151.0,0.00018095,2]
[361745461,1747752638453,-492.500268,0.00018095,2]
[361745462,1747752638463,-492.500268,0.00018095,2]
[361745463,1747752638473,-200.83723,0.00018095,2]
[361745464,1747752638482,-200.83723,0.00018095,2]
[361745465,1747752638492,-230.338317,0.00018095,2]
[361745466,1747752638501,-230.338317,0.00018095,2]
[361745467,1747752638511,-158.280771,0.00018219,2]
[361745468,1747752638520,-151.0,0.0001825,2]
[361745469,1747752638530,-151.0,0.0001825,2]
[361745470,1747752638540,-151.0,0.0001825,2]
[361745471,1747752638549,-151.0,0.0001825,2]
[361745472,1747752638559,-2800.0,0.00018253,2]
[361745473,1747752638568,-2200.0,0.0001826,2]
[361745474,1747752638578,-796.614,0.0001826,2]
[361745475,1747752638587,-151.0,0.00018279,2]
[361745476,1747752638600,-206.918392,0.00018279,2]
[361745477,1747752638609,-515.28709706,0.00018299,2]
[361745478,1747752638618,-5152.46097477,0.00018314,2]
[361745479,1747752638628,-151.0,0.00018356,2]
[361745480,1747752638639,-151.0,0.00018356,2]
[361745481,1747752638649,-430.0,0.00018356,2]
[361745482,1747752638659,-151.0,0.00018356,2]
[361745483,1747752638668,-430.0,0.00018356,2]
[361745484,1747752638679,-151.0,0.00018356,2]
[361745485,1747752638690,-634.25,0.00018356,2]
[361745486,1747752638699,-588.17,0.00018356,2]
[361745487,1747752638709,-583.01,0.00018356,2]
[361745488,1747752638719,-430.0,0.00018356,2]
[361745489,1747752638729,-430.0,0.00018356,2]
[361745490,1747752638739,-200.83723,0.00018356,2]
[361745491,1747752638749,-200.837228,0.00018356,2]
[361745492,1747752638759,-430.0,0.00018356,2]
[361745493,1747752638769,-243.76145953,0.00018356,2]
[361745494,1747752638779,-1077.82,0.00018356,2]
[361745495,1747752638788,-430.0,0.00018356,2]
[361745496,1747752638798,-452.75,0.00018356,2]
[361745497,1747752638808,-430.0,0.00018356,2]
[361745498,1747752638818,-437.82,0.00018356,2]
[361745499,1747752638828,-1533.27,0.00018356,2]
[361745500,1747752638837,-430.0,0.00018356,2]
[361745501,1747752638847,-430.0,0.00018356,2]
[361745502,1747752638857,-430.0,0.00018356,2]
[361745503,1747752638867,-499.23,0.00018356,2]
[361745504,1747752638876,-538.24,0.00018356,2]
[361745505,1747752638886,-430.0,0.00018356,2]
[361745506,1747752638896,-469.28,0.00018356,2]
[361745507,1747752638906,-430.0,0.00018356,2]
[361745508,1747752638916,-477.31,0.00018356,2]
[361745509,1747752638926,-1126.95,0.00018356,2]
[361745510,1747752638936,-571.74,0.00018356,2]
[361745511,1747752638946,-430.0,0.00018356,2]
[361745512,1747752638956,-492.500268,0.00018389,2]
[361745513,1747752638966,-492.50026,0.00018389,2]
[361745514,1747752638977,-3389.92254385,0.00018521,2]
[361745515,1747752638987,-230.338317,0.0001859,2]
[361745516,1747752638997,-230.338315,0.0001859,2]
[361745517,1747752639007,-693.51765906,0.000186,2]
[361745518,1747752639018,-1000.0,0.000186,2]
[361745519,1747752639028,-151.0,0.0001863,2]
[361745520,1747752639039,-151.0,0.0001863,2]
[361745521,1747752639051,-151.0,0.0001863,2]
[361745522,1747752639060,-151.0,0.0001863,2]
[361745523,1747752639071,-151.0,0.0001863,2]
[361745524,1747752639081,-560.0,0.0001863,2]
[361745525,1747752639091,-151.0,0.0001863,2]
[361745526,1747752639100,-151.0,0.0001863,2]
[361745527,1747752639111,-430.0,0.0001863,2]
[361745528,1747752639121,-634.25,0.0001863,2]
[361745529,1747752639131,-588.17,0.0001863,2]
[361745530,1747752639141,-583.01,0.0001863,2]
[361745531,1747752639152,-430.0,0.0001863,2]
[361745532,1747752639161,-430.0,0.0001863,2]
[361745533,1747752639171,-430.0,0.0001863,2]
[361745534,1747752639181,-1077.82,0.0001863,2]
[361745535,1747752639191,-430.0,0.0001863,2]
[361745536,1747752639200,-452.75,0.0001863,2]
[361745537,1747752639211,-430.0,0.0001863,2]
[361745538,1747752639221,-437.82,0.0001863,2]
[361745539,1747752639231,-1533.27,0.0001863,2]
[361745540,1747752639241,-430.0,0.0001863,2]
[361745541,1747752639251,-430.0,0.0001863,2]
[361745542,1747752639260,-430.0,0.0001863,2]
[361745543,1747752639271,-499.23,0.0001863,2]
[361745544,1747752639280,-538.24,0.0001863,2]
[361745545,1747752639290,-430.0,0.0001863,2]
[361745546,1747752639300,-469.28,0.0001863,2]
[361745547,1747752639310,-430.0,0.0001863,2]
[361745548,1747752639319,-477.31,0.0001863,2]
[361745549,1747752639330,-1126.95,0.0001863,2]
[361745550,1747752639340,-571.74,0.0001863,2]
[361745551,1747752639349,-430.0,0.0001863,2]
[361745552,1747752639358,-5152.46097477,0.00018659,2]
[361745553,1747752639368,-151.0,0.00018742,2]
[361745554,1747752639377,-158.280771,0.00018816,7]
[361745555,1747752639387,-151.0,0.000189,2]
[361745556,1747752639398,-151.0,0.00018904,2]
[361745557,1747752639407,-151.0,0.00018904,2]
[361745559,1747752639417,-151.0,0.00018904,2]
[361745560,1747752639428,-430.0,0.00018904,2]
[361745561,1747752639438,-634.25,0.00018904,2]
[361745562,1747752639449,-588.17,0.00018904,2]
[361745563,1747752639462,-583.01,0.00018904,2]
[361745564,1747752639471,-430.0,0.00018904,2]
[361745565,1747752639481,-430.0,0.00018904,2]
[361745566,1747752639491,-542.61214214,0.00018904,2]
[361745567,1747752639501,-1077.82,0.00018904,2]
[361745568,1747752639511,-430.0,0.00018904,2]
[361745569,1747752639520,-452.75,0.00018904,2]
[361745570,1747752639530,-430.0,0.00018904,2]
[361745571,1747752639540,-437.82,0.00018904,2]
[361745572,1747752639550,-1533.27,0.00018904,2]
[361745573,1747752639561,-430.0,0.00018904,2]
[361745574,1747752639571,-430.0,0.00018904,2]
[361745575,1747752639581,-430.0,0.00018904,2]
[361745576,1747752639593,-499.23,0.00018904,2]
[361745577,1747752639603,-538.24,0.00018904,2]
[361745578,1747752639613,-182.04382224,0.00018904,2]
[361745579,1747752639623,-469.28,0.00018904,2]
[361745580,1747752639634,-430.0,0.00018904,2]
[361745592,1747752639813,-477.31,0.00018904,2]
[361745594,1747752639825,-1126.95,0.00018904,2]
[361745596,1747752639835,-571.74,0.00018904,2]
[361745598,1747752639845,-430.0,0.00018904,2]
[361745600,1747752639854,-272.3584202,0.00018986,2]
[361745602,1747752639864,-153.0,0.00018986,2]
[361745604,1747752639873,-153.0,0.00018986,2]
[361745606,1747752639883,-68096.44,0.0001899,3]
[361745608,1747752639893,-212.38718278,0.0001899,3]
[361745610,1747752639903,-5152.46097477,0.00019003,2]
[361745612,1747752639912,-2003.84163779,0.00019178,2]
[361745614,1747752639932,-3895.44109565,0.00019178,2]
[361745642,1747752640208,-151.0,0.00016712,2]
[361745644,1747752640218,-151.0,0.00016877,2]
[361745646,1747752640229,-500.0,0.00016983,2]
[361745648,1747752640238,-500.0,0.00016983,2]
[361745650,1747752640248,-500.0,0.00016983,2]
[361745652,1747752640258,-500.0,0.00016983,2]
[361745654,1747752640268,-500.0,0.00016983,2]
[361745655,1747752640277,-500.0,0.00016983,2]
[361745657,1747752640287,-250.0,0.00016983,2]
[361745659,1747752640296,-394.22420089,0.00016983,2]
[361745661,1747752640305,-500.0,0.00016983,2]
[361745663,1747752640314,-500.0,0.00016983,2]
[361745665,1747752640324,-500.0,0.00016983,2]
[361745667,1747752640333,-500.0,0.00016983,2]
[361745669,1747752640343,-238.96086797,0.00016983,2]
[361745671,1747752640353,-404.0,0.00017659,2]
[361745673,1747752640362,-6741.52881975,0.00019178,2]
[361745674,1747752640372,-151.0,0.00019178,2]
[361745676,1747752640382,-151.0,0.00019178,2]
[361745678,1747752640391,-151.0,0.00019178,2]
[361745680,1747752640401,-151.0,0.00019178,2]
[361745682,1747752640411,-151.0,0.00019178,2]
[361745684,1747752640421,-176.664318,0.00019178,2]
[361745686,1747752640431,-151.0,0.00019178,2]
[361745688,1747752640441,-282.055,0.00019178,2]
[361745690,1747752640451,-153.39946089,0.00019178,2]
[361745692,1747752640462,-634.25,0.00019178,2]
[361745694,1747752640471,-588.17,0.00019178,2]
[361745696,1747752640481,-583.01,0.00019178,2]
[361745698,1747752640492,-430.0,0.00019178,2]
[361745700,1747752640503,-430.0,0.00019178,2]
[361745702,1747752640512,-1077.82,0.00019178,2]
[361745704,1747752640522,-430.0,0.00019178,2]
[361745706,1747752640531,-452.75,0.00019178,2]
[361745708,1747752640541,-437.82,0.00019178,2]
[361745710,1747752640551,-430.0,0.00019178,2]
[361745712,1747752640561,-1717.66,0.00019178,2]
[361745713,1747752640571,-1717.66,0.00019178,2]
[361745715,1747752640581,-1717.66,0.00019178,2]
[361745717,1747752640591,-1717.66,0.00019178,2]
[361745719,1747752640604,-1717.66,0.00019178,2]
[361745721,1747752640615,-1717.66,0.00019178,2]
[361745723,1747752640626,-1717.66,0.00019178,2]
[361745725,1747752640638,-1717.66,0.00019178,2]
[361745727,1747752640648,-1717.66,0.00019178,2]
[361745729,1747752640657,-1717.66,0.00019178,2]
[361745731,1747752640666,-1717.66,0.00019178,2]
[361745733,1747752640677,-1533.27,0.00019178,2]
[361745735,1747752640687,-430.0,0.00019178,2]
[361745737,1747752640697,-430.0,0.00019178,2]